[Event "XXIX Cracovia 2018"]
[Site "Krakow"]
[Date "2018.12.29"]
[Round "3"]
[White "Kyc, Jerzy"]
[Black "Eggink, Ryszard"]
[Result "0-1"]
[ECO "B07"]
[WhiteElo "2280"]
[BlackElo "2343"]
[Annotator "NA"]
[PlyCount "106"]
[EventDate "2018.12.27"]
[EventType "swiss"]
[EventCountry "POL"]
[SourceTitle "playchess.com"]
[Source "ChessBase"]
[SourceQuality "1"]
[TimeControl "40/5400+30:1800+30"]

1. e4 {[%emt 0:00:00]} d6 {[%emt 0:00:00]} 2. d4 {[%emt 0:00:00]} Nf6 {[%emt 0:00:05]} 3. Nc3 {[%emt 0:00:02]} Nbd7 {[%emt 0:00:10]} 4. Nf3 {[%emt 0:00:18]} e5 {[%emt 0:00:06]} 5. Bc4 {[%emt 0:00:32]} Be7 {[%emt 0:00:05]} 6. O-O {[%emt 0:00:56]} O-O {[%emt 0:00:04]} 7. dxe5 {[%emt 0:01:09]} dxe5 {[%emt 0:01:25]} 8. Qe2 {[%emt 0:04:21]} c6 {[%emt 0:00:13]} 9. a4 {[%emt 0:00:24]} a5 {[%emt 0:00:45] C41: Philidor Defence} 10. Bg5 {[%emt 0:01:23]} (10. Rd1 Qc7 11. Nd2 Nc5 12. Nb3 Nxb3 13. Bxb3 Nd7 14. Bc4 Nc5 15. Be3 Be6 {0-1 (37) Gjuran,D (2326)-Skoberne,J (2573) Slovenia 2013}) 10... Qc7 {[%emt 0:04:06]} 11. Nh4 {[%emt 0:14:32]} Nc5 {[%emt 0:05:27]} 12. Nf5 $146 {[%emt 0:09:21]} ({Predecessor:} 12. Kh1 Ng4 13. f4 exf4 14. Bxf4 Bd6 15. Bxd6 Qxd6 16. Nf3 Qh6 17. Rae1 {1-0 (33) Jimenez Fraga,P (2292)-Linares Napoles,O (2241) Havana 2007}) 12... Ne6 {[%emt 0:03:27]} 13. Bxe6 {[%emt 0:05:39]} Bxe6 {[%emt 0:00:15]} 14. Nxe7+ {[%emt 0:03:20]} Qxe7 {[%emt 0:00:01]} 15. Qf3 {[%emt 0:06:02]} Rfd8 {[%emt 0:04:46]} 16. Rad1 {[%emt 0:07:52]} h6 {[%emt 0:05:30]} 17. Bxf6 {[%emt 0:00:29]} Qxf6 {[%emt 0:00:02]} 18. Qxf6 {[%emt 0:00:59]} gxf6 {[%emt 0:00:01]} 19. f4 {[%emt 0:11:00]} exf4 {[%emt 0:05:16]} 20. Rxf4 {[%emt 0:04:59]} Rxd1+ {[%emt 0:00:17]} 21. Nxd1 {[%emt 0:00:01]} Rd8 {[%emt 0:00:01]} 22. Nc3 {[%emt 0:00:01]} Kg7 {[%emt 0:03:09]} 23. Rf3 {[%emt 0:09:46]} Rd2 {[%emt 0:07:02]} 24. Rf2 {[%emt 0:00:21]} Rd4 {[%emt 0:00:02]} 25. Rf1 {[%emt 0:07:05]} Rb4 {[%emt 0:02:47]} 26. b3 {[%emt 0:00:26]} c5 {[%emt 0:00:06]} 27. Nd5 {[%emt 0:02:34]} Rxe4 {[%emt 0:01:26]} 28. Nxf6 {[%emt 0:01:08]} Re2 {[%emt 0:02:58]} 29. Ne8+ {[%emt 0:02:44]} Kf8 {[%emt 0:03:34]} 30. Nc7 {[%emt 0:00:07]} Bd7 $17 {[%emt 0:01:18]} 31. c4 {[%emt 0:04:07]} Bc6 {[%emt 0:03:20]} 32. Nd5 {[%emt 0:03:49]} Bxd5 {[%emt 0:00:32]} 33. cxd5 {[%emt 0:00:01]} Re3 {[%emt 0:00:02]} 34. Rf6 {[%emt 0:00:57]} Rxb3 {[%emt 0:00:07]} 35. Rxh6 {[%emt 0:00:11]} Rb4 {[%emt 0:00:14]} 36. d6 {[%emt 0:00:46]} Ke8 {[%emt 0:00:27]} 37. Rh8+ {[%emt 0:00:34]} Kd7 {[%emt 0:00:04]} 38. Rf8 {[%emt 0:00:11]} Kxd6 {[%emt 0:03:48]} 39. Rxf7 {[%emt 0:00:04]} b6 {[%emt 0:00:19]} 40. Rf6+ {[%emt 0:00:00]} Kc7 {[%emt 0:00:00]} 41. g3 {[%emt 0:01:26]} Rxa4 {[%emt 0:00:54]} 42. h4 {[%emt 0:00:05]} Rg4 {[%emt 0:01:08]} 43. Kg2 {[%emt 0:00:06]} a4 {[%emt 0:00:40]} 44. Kh3 {[%emt 0:00:19]} Rg8 {[%emt 0:02:53]} 45. h5 {[%emt 0:03:10]} Ra8 {[%emt 0:01:23]} 46. Rf7+ {[%emt 0:04:55]} Kc6 {[%emt 0:00:14]} 47. Rf6+ {[%emt 0:00:02]} Kc7 {[%emt 0:13:31]} 48. Rf7+ {[%emt 0:01:05]} Kd6 {[%emt 0:00:06]} 49. Rf6+ {[%emt 0:00:10]} Ke7 {[%emt 0:02:01]} 50. Rxb6 {[%emt 0:07:23]} a3 {[%emt 0:00:12]} 51. Rb7+ {[%emt 0:00:27]} Kf6 {[%emt 0:01:41]} 52. Rb1 {[%emt 0:00:36]} a2 {[%emt 0:00:05]} 53. Ra1 {[%emt 0:00:06]} c4 {[%emt 0:00:21]} 0-1

[Event "XXIX Cracovia 2018"]
[Site "Krakow"]
[Date "2018.12.29"]
[Round "3"]
[White "Gbyl, Andrzej"]
[Black "Cukrowski, Filip"]
[Result "0-1"]
[ECO "D02"]
[WhiteElo "2266"]
[BlackElo "2416"]
[Annotator "NA"]
[PlyCount "144"]
[EventDate "2018.12.27"]
[EventType "swiss"]
[EventCountry "POL"]
[SourceTitle "playchess.com"]
[Source "ChessBase"]
[SourceQuality "1"]
[TimeControl "40/5400+30:1800+30"]

1. d4 {[%emt 0:00:00]} d5 {[%emt 0:14:09]} 2. Nf3 {[%emt 0:00:30]} c6 {[%emt 0:03:24]} 3. c4 {[%emt 0:00:43]} e6 {[%emt 0:00:17]} 4. e3 {[%emt 0:00:58]} Nf6 {[%emt 0:00:29]} 5. b3 {[%emt 0:01:19]} Nbd7 {[%emt 0:01:53]} 6. Bd3 {[%emt 0:01:15]} Bd6 {[%emt 0:00:25]} 7. Bb2 {[%emt 0:00:16]} O-O {[%emt 0:02:16] LiveBook: 257 Games A06: Réti Opening:1 Nf3 d5} 8. Nbd2 {[%emt 0:01:09]} Bc7 {[%emt 0:12:24]} (8... b6 9. O-O Bb7 10. Qe2 c5 11. Rad1 Ne4 12. cxd5 exd5 13. Ba6 Bxa6 14. Qxa6 Re8 15. dxc5 Ndxc5 16. Qe2 Rc8 17. Rc1 Bf8 18. Rfd1 Qe7 {½-½ (45) Radjabov,T (2710)-Ding,L (2773) Moscow 2017}) 9. O-O {[%emt 0:02:00]} Qe7 $146 {[%emt 0:00:39]} ({Predecessor:} 9... a5 10. Ne5 Nxe5 11. dxe5 Nd7 12. f4 dxc4 13. Nxc4 {1-0 (26) Ng,C (1936)-Bennett,C (1793) Cammeray 2013}) 10. Ne5 {[%emt 0:02:40]} Nxe5 {[%emt 0:00:32]} 11. dxe5 {[%emt 0:00:05]} Nd7 {[%emt 0:00:09]} 12. f4 {[%emt 0:08:33]} f5 {[%emt 0:05:06]} 13. Qc2 {[%emt 0:04:21]} Bb6 {[%emt 0:02:30]} 14. Rf3 {[%emt 0:00:41]} g6 {[%emt 0:05:12]} 15. Rc1 {[%emt 0:02:09]} Rd8 {[%emt 0:02:11]} 16. cxd5 {[%emt 0:11:52]} cxd5 {[%emt 0:01:16]} 17. Bd4 {[%emt 0:00:44]} Nb8 {[%emt 0:02:19]} 18. Bxb6 {[%emt 0:07:06]} axb6 {[%emt 0:00:08]} 19. a4 {[%emt 0:02:06]} Nc6 {[%emt 0:01:18]} 20. Bb5 {[%emt 0:00:28]} Bd7 {[%emt 0:00:23]} 21. Rff1 {[%emt 0:01:18]} Rac8 {[%emt 0:00:42]} 22. Qb2 {[%emt 0:04:57]} Nb4 {[%emt 0:09:28]} 23. Qd4 {[%emt 0:04:04]} Bxb5 {[%emt 0:03:05]} 24. axb5 {[%emt 0:01:28]} Nc2 {[%emt 0:15:40]} 25. Qxb6 {[%emt 0:00:52]} d4 {[%emt 0:00:05]} 26. exd4 {[%emt 0:03:52]} Qd7 {[%emt 0:00:57]} 27. Nf3 {[%emt 0:02:46]} Qd5 {[%emt 0:00:53]} 28. h3 {[%emt 0:05:48]} h6 {[%emt 0:03:52]} 29. Kh1 {[%emt 0:00:48]} (29. Kh2 $18) 29... Rc3 {[%emt 0:02:53]} 30. Rf2 {[%emt 0:07:46]} Rdc8 {[%emt 0:00:21]} 31. Kh2 {[%emt 0:01:20]} Kf7 {[%emt 0:00:43]} 32. Qd6 {[%emt 0:01:54]} Ke8 {[%emt 0:03:27]} 33. Qxd5 {[%emt 0:02:08]} exd5 {[%emt 0:00:04] [#]} 34. Rd2 $16 {[%emt 0:05:14]} (34. Nh4 $1 $18 {is the precise move to win.}) 34... Kf7 {[%emt 0:00:53]} 35. Kg1 {[%emt 0:02:01]} Nb4 {[%emt 0:00:59]} 36. Re1 {[%emt 0:01:23]} Ke6 {[%emt 0:00:32]} 37. Nh4 {[%emt 0:01:06]} Rxb3 {[%emt 0:00:17]} 38. Kh2 {[%emt 0:00:56]} g5 {[%emt 0:03:05]} 39. fxg5 {[%emt 0:00:07]} hxg5 {[%emt 0:00:04]} 40. Nf3 {[%emt 0:00:00]} Rg8 {[%emt 0:00:00]} 41. Rc1 {[%emt 0:03:02]} g4 {[%emt 0:01:09]} 42. Ng1 {[%emt 0:00:17]} g3+ {[%emt 0:06:30]} 43. Kh1 {[%emt 0:00:10]} Nd3 {[%emt 0:01:50]} 44. Rf1 {[%emt 0:01:07]} Nf2+ {[%emt 0:03:46]} 45. Rfxf2 {[%emt 0:00:05]} gxf2 {[%emt 0:00:04]} 46. Rxf2 {[%emt 0:00:04]} Rxb5 {[%emt 0:01:12]} 47. Ne2 {[%emt 0:00:07]} Rc8 {[%emt 0:01:23]} 48. Nf4+ {[%emt 0:00:18]} Kd7 {[%emt 0:00:23]} 49. Nd3 {[%emt 0:03:10]} Rc4 {[%emt 0:01:04]} 50. Rxf5 {[%emt 0:01:28]} Rxd4 {[%emt 0:00:20]} 51. Rf3 {[%emt 0:03:10]} Re4 {[%emt 0:01:48]} 52. Kh2 {[%emt 0:00:07]} d4 {[%emt 0:01:24]} 53. g4 {[%emt 0:00:45]} Ke7 {[%emt 0:02:44]} 54. Nf4 {[%emt 0:02:47]} Ke8 {[%emt 0:05:42]} 55. e6 {[%emt 0:05:02]} Rbe5 {[%emt 0:01:57]} 56. Kg3 {[%emt 0:01:53]} Re3 {[%emt 0:00:34]} 57. h4 {[%emt 0:00:26]} Rxf3+ {[%emt 0:02:10]} 58. Kxf3 {[%emt 0:00:05]} b5 {[%emt 0:01:36]} 59. h5 {[%emt 0:00:05]} d3 {[%emt 0:04:28]} 60. Nxd3 {[%emt 0:00:22]} Rxe6 {[%emt 0:00:05]} 61. g5 {[%emt 0:00:16]} Kf8 {[%emt 0:00:34]} 62. Kf4 {[%emt 0:00:12]} Rd6 {[%emt 0:00:48]} 63. Ke4 {[%emt 0:00:16]} Kg7 {[%emt 0:00:38]} 64. Nb4 {[%emt 0:02:05]} Rd1 {[%emt 0:00:41]} 65. Nd3 {[%emt 0:04:43]} Rh1 {[%emt 0:00:38]} 66. Kd4 {[%emt 0:01:00]} Rxh5 {[%emt 0:00:23]} 67. Kc5 {[%emt 0:00:04]} Rxg5+ {[%emt 0:00:04]} 68. Kb4 {[%emt 0:00:05]} Kf7 {[%emt 0:00:31]} 69. Nc5 {[%emt 0:00:05]} Ke7 {[%emt 0:00:06]} 70. Nb3 {[%emt 0:06:35]} Kd6 {[%emt 0:00:28]} 71. Nd4 {[%emt 0:00:06]} Rg4 {[%emt 0:00:05]} 72. Kc3 {[%emt 0:00:04]} b4+ {[%emt 0:00:20]} 0-1

[Event "XXIX Cracovia 2018"]
[Site "Krakow"]
[Date "2018.12.29"]
[Round "3"]
[White "Gombocz, Ferenc Jr."]
[Black "Goumas, Georgios"]
[Result "0-1"]
[ECO "A13"]
[WhiteElo "2263"]
[BlackElo "2378"]
[Annotator "NA"]
[PlyCount "94"]
[EventDate "2018.12.27"]
[EventType "swiss"]
[EventCountry "POL"]
[SourceTitle "playchess.com"]
[Source "ChessBase"]
[SourceQuality "1"]
[TimeControl "40/5400+30:1800+30"]

1. c4 {[%emt 0:00:00]} e6 {[%emt 0:11:46]} 2. g3 {[%emt 0:00:00]} d5 {[%emt 0:00:09]} 3. Bg2 {[%emt 0:00:10]} Nf6 {[%emt 0:00:12]} 4. Nf3 {[%emt 0:00:05]} d4 {[%emt 0:00:11]} 5. O-O {[%emt 0:00:21]} c5 {[%emt 0:00:10]} 6. e3 {[%emt 0:00:21]} Nc6 {[%emt 0:00:06]} 7. exd4 {[%emt 0:00:06]} cxd4 {[%emt 0:00:05]} 8. b3 {[%emt 0:00:58]} Bd6 {[%emt 0:04:11]} 9. Bb2 {[%emt 0:05:06]} e5 {[%emt 0:00:51]} 10. Re1 {[%emt 0:00:57]} O-O {[%emt 0:00:13]} 11. d3 {[%emt 0:00:07]} h6 {[%emt 0:00:37]} 12. a3 $15 {[%emt 0:02:21]} a5 {[%emt 0:06:13]} 13. Nbd2 {[%emt 0:00:20]} Bf5 {[%emt 0:01:30]} 14. Qe2 {[%emt 0:01:32]} Re8 {[%emt 0:01:48]} 15. Nh4 {[%emt 0:08:44]} Bg4 {[%emt 0:09:01]} 16. Bf3 {[%emt 0:00:30]} Bd7 {[%emt 0:00:35]} 17. Ne4 {[%emt 0:04:26]} Be7 {[%emt 0:00:06]} 18. Nxf6+ {[%emt 0:00:08]} Bxf6 {[%emt 0:00:05]} 19. Ng2 {[%emt 0:00:09]} Qb6 {[%emt 0:21:05]} 20. Qc2 {[%emt 0:01:52]} Bf5 {[%emt 0:04:51]} 21. Rab1 {[%emt 0:07:48]} Rad8 {[%emt 0:01:06]} 22. Bd5 {[%emt 0:07:02]} Qc5 {[%emt 0:01:25]} 23. Qd2 {[%emt 0:00:13]} Rxd5 {[%emt 0:00:25]} 24. cxd5 {[%emt 0:00:40]} Qxd5 {[%emt 0:00:04]} 25. Qd1 {[%emt 0:06:56]} Qb5 {[%emt 0:10:54]} 26. b4 {[%emt 0:05:16]} axb4 {[%emt 0:01:23]} 27. axb4 {[%emt 0:00:42]} Qxd3 {[%emt 0:02:31]} 28. Qxd3 {[%emt 0:00:24]} Bxd3 {[%emt 0:00:05]} 29. Rbd1 {[%emt 0:00:14]} Bb5 {[%emt 0:01:04]} 30. Re4 {[%emt 0:06:55]} Nxb4 {[%emt 0:02:40]} 31. f4 {[%emt 0:00:52]} Bc6 {[%emt 0:00:43]} 32. Ree1 {[%emt 0:02:37]} Nc2 {[%emt 0:06:46]} 33. Re2 {[%emt 0:00:33]} Bf3 {[%emt 0:00:05]} 34. Rxc2 {[%emt 0:00:06]} Bxd1 {[%emt 0:00:04]} 35. Rd2 {[%emt 0:00:08]} Bf3 {[%emt 0:01:02]} 36. fxe5 {[%emt 0:00:31]} Bxe5 {[%emt 0:00:04]} 37. Bxd4 {[%emt 0:00:25]} Rd8 {[%emt 0:04:47]} 38. Be3 {[%emt 0:00:10]} Rxd2 {[%emt 0:00:04]} 39. Bxd2 {[%emt 0:00:07]} Bxg2 {[%emt 0:00:16]} 40. Kxg2 {[%emt 0:00:00]} Kf8 {[%emt 0:00:00]} 41. Bb4+ {[%emt 0:00:48]} Ke8 {[%emt 0:00:11]} 42. g4 {[%emt 0:00:33]} Kd7 {[%emt 0:00:09]} 43. h3 {[%emt 0:00:07]} Ke6 {[%emt 0:00:17]} 44. Kf3 {[%emt 0:00:19]} Kd5 {[%emt 0:00:06]} 45. Ke3 {[%emt 0:00:20]} Kc4 {[%emt 0:00:37]} 46. Bf8 {[%emt 0:01:18]} b5 {[%emt 0:00:20]} 47. Ke4 {[%emt 0:00:07]} Bc3 {[%emt 0:00:24] Kd4+} 0-1

[Event "XXIX Cracovia 2018"]
[Site "Krakow"]
[Date "2018.12.29"]
[Round "3"]
[White "Kokoszczynski, Jan"]
[Black "Lewtak, Damian"]
[Result "1/2-1/2"]
[ECO "A41"]
[WhiteElo "2242"]
[BlackElo "2393"]
[Annotator "NA"]
[PlyCount "38"]
[EventDate "2018.12.27"]
[EventType "swiss"]
[EventCountry "POL"]
[SourceTitle "playchess.com"]
[Source "ChessBase"]
[SourceQuality "1"]
[TimeControl "40/5400+30:1800+30"]

1. c4 {[%emt 0:00:00]} g6 {[%emt 0:00:00]} 2. Nc3 {[%emt 0:00:00]} Bg7 {[%emt 0:00:00]} 3. d4 {[%emt 0:00:43]} d6 {[%emt 0:00:06]} 4. Nf3 {[%emt 0:03:39]} Bg4 {[%emt 0:02:39]} 5. g3 {[%emt 0:03:05]} Bxf3 {[%emt 0:09:27]} 6. exf3 {[%emt 0:00:07]} c6 {[%emt 0:01:34]} 7. Be3 {[%emt 0:03:46]} Nf6 {[%emt 0:00:44]} 8. Bg2 {[%emt 0:07:44]} Nbd7 {[%emt 0:00:13]} 9. O-O {[%emt 0:00:24]} O-O {[%emt 0:05:17]} 10. Re1 {[%emt 0:04:20]} d5 {[%emt 0:04:49]} 11. cxd5 {[%emt 0:07:51]} cxd5 {[%emt 0:00:23]} 12. Bf1 {[%emt 0:04:25]} e6 {[%emt 0:03:33]} 13. a4 {[%emt 0:03:48]} Ne8 {[%emt 0:02:09]} 14. Qb3 {[%emt 0:04:22]} Nd6 {[%emt 0:02:31]} 15. a5 {[%emt 0:06:34]} Nb8 {[%emt 0:04:37]} 16. Red1 {[%emt 0:03:00]} Nc6 {[%emt 0:00:36]} 17. a6 {[%emt 0:03:43]} b6 {[%emt 0:01:41]} 18. Qa4 {[%emt 0:00:53]} Rc8 {[%emt 0:00:30]} 19. Rac1 {[%emt 0:02:31]} Nf5 {[%emt 0:17:50]} 1/2-1/2

[Event "XXIX Cracovia 2018"]
[Site "Krakow"]
[Date "2018.12.29"]
[Round "3"]
[White "Kozak, Antoni"]
[Black "Galperin, Platon"]
[Result "0-1"]
[ECO "D37"]
[WhiteElo "2236"]
[BlackElo "2363"]
[Annotator "NA"]
[PlyCount "120"]
[EventDate "2018.12.27"]
[EventType "swiss"]
[EventCountry "POL"]
[SourceTitle "playchess.com"]
[Source "ChessBase"]
[SourceQuality "1"]
[TimeControl "40/5400+30:1800+30"]

1. d4 Nf6 2. Nf3 d5 3. c4 e6 4. Nc3 a6 5. cxd5 exd5 6. Bg5 Be6 7. e3 Nbd7 8. Bd3 Bd6 9. Bh4 h6 10. O-O O-O 11. Ne2 c6 12. Bg3 Bxg3 13. Nxg3 Re8 14. h3 Qc7 15. Qc2 Qd6 16. Nd2 Rac8 17. Nb3 Re7 18. Rac1 Rce8 19. Na5 Nf8 20. Qb3 Qc7 21. Qb4 Bc8 22. Nf5 Re6 23. Nb3 N8d7 24. Qe1 h5 25. Nd2 g6 26. Ng3 Qd6 27. Ne2 b6 28. Nf4 R6e7 29. b4 c5 30. bxc5 bxc5 31. dxc5 Nxc5 32. Nb3 Nxb3 33. axb3 d4 34. Bc4 g5 35. Nd3 dxe3 36. fxe3 Rxe3 37. Qc3 Kg7 38. Rf2 Re2 39. Rxe2 Rxe2 40. Nf4 Re5 41. Nd3 Re3 42. Rf1 Bb7 43. Rf2 Be4 44. Qe5 Qxe5 45. Nxe5 Bxg2 46. Nxf7 Be4 47. Nd6 Rxh3 48. Rxf6 Kxf6 49. Nxe4+ Ke5 50. Nc5 a5 51. Nb7 Rc3 52. Nxa5 h4 53. Bf1 Kf4 54. b4 Kg3 55. Nc4 h3 56. Nd2 h2+ 57. Kh1 Rc1 58. b5 Rd1 59. b6 Rxd2 60. b7 Rb2 0-1

[Event "XXIX Cracovia 2018"]
[Site "Krakow"]
[Date "2018.12.29"]
[Round "3"]
[White "Rakhmangulova, Anastasiya"]
[Black "Szpar, Milosz"]
[Result "1/2-1/2"]
[ECO "B33"]
[WhiteElo "2233"]
[BlackElo "2339"]
[Annotator "NA"]
[PlyCount "96"]
[EventDate "2018.12.27"]
[EventType "swiss"]
[EventCountry "POL"]
[SourceTitle "playchess.com"]
[Source "ChessBase"]
[SourceQuality "1"]
[TimeControl "40/5400+30:1800+30"]

1. e4 c5 2. Nf3 Nc6 3. d4 cxd4 4. Nxd4 Nf6 $11 {LiveBook: 28639 Games} 5. Nc3 e5 6. Ndb5 d6 7. Bg5 a6 8. Na3 b5 9. Nd5 Be7 10. Bxf6 Bxf6 11. c4 b4 12. Nc2 a5 13. g3 O-O 14. Bg2 Be6 15. Nxf6+ Qxf6 16. b3 Qd8 17. O-O Qb6 18. Kh1 Qc5 19. f4 f6 20. f5 Bf7 21. g4 h6 22. h4 Rfd8 23. Qd2 a4 24. Bf3 Kf8 25. Kg2 Ke7 26. Rh1 Ra7 27. g5 Rda8 28. Be2 axb3 29. axb3 Ra2 30. Rxa2 Rxa2 31. Ra1 Rxa1 32. gxf6+ Kxf6 33. Nxa1 Qd4 34. Qxd4 exd4 35. Nc2 Ke5 36. Kf2 g6 37. Bd3 gxf5 38. exf5 Bh5 39. f6 Kxf6 40. Be4 Na5 41. Nxd4 Bd1 42. Bc2 Bxc2 43. Nxc2 Nxb3 44. Nxb4 Nd2 45. Nd5+ Kf5 46. Ne3+ Kf4 47. Nd5+ Kg4 48. Ne3+ Kf4 1/2-1/2

[Event "XXIX Cracovia 2018"]
[Site "Krakow"]
[Date "2018.12.29"]
[Round "3"]
[White "Bus, Konrad"]
[Black "Zakrzewski, Marek"]
[Result "1/2-1/2"]
[ECO "E11"]
[WhiteElo "2221"]
[BlackElo "2311"]
[Annotator "NA"]
[PlyCount "139"]
[EventDate "2018.12.27"]
[EventType "swiss"]
[EventCountry "POL"]
[SourceTitle "playchess.com"]
[Source "ChessBase"]
[SourceQuality "1"]
[TimeControl "40/5400+30:1800+30"]

1. d4 {[%emt 0:00:00]} Nf6 {[%emt 0:00:00]} 2. c4 {[%emt 0:00:00]} e6 {[%emt 0:00:00]} 3. Nf3 {[%emt 0:00:26]} Bb4+ {[%emt 0:00:00]} 4. Nbd2 {[%emt 0:01:55]} O-O {[%emt 0:00:10]} 5. a3 {[%emt 0:01:28]} Be7 {[%emt 0:00:09]} 6. e3 {[%emt 0:02:57]} d5 {[%emt 0:01:07]} 7. Bd3 {[%emt 0:02:21]} b6 {[%emt 0:03:03]} 8. O-O {[%emt 0:03:45]} Bb7 {[%emt 0:01:56]} 9. b4 {[%emt 0:02:30]} c5 {[%emt 0:04:20]} 10. bxc5 {[%emt 0:09:26]} bxc5 {[%emt 0:00:33]} 11. Rb1 {[%emt 0:06:51]} Ba6 {[%emt 0:04:44]} 12. Ne5 {[%emt 0:07:06]} Nfd7 {[%emt 0:02:41]} 13. Qc2 {[%emt 0:05:50]} f5 {[%emt 0:13:30]} 14. Ndf3 {[%emt 0:05:05]} Nxe5 {[%emt 0:09:03]} 15. Nxe5 {[%emt 0:00:51]} Bf6 {[%emt 0:07:26]} 16. Rxb8 {[%emt 0:11:01]} Rxb8 {[%emt 0:02:19]} 17. Nc6 {[%emt 0:02:09]} Qd6 {[%emt 0:00:38]} 18. Nxb8 {[%emt 0:01:39]} Rxb8 {[%emt 0:00:19]} 19. cxd5 {[%emt 0:04:05]} Bxd3 {[%emt 0:01:52]} 20. Qxd3 {[%emt 0:00:10]} Qxd5 {[%emt 0:00:09]} 21. Rd1 {[%emt 0:03:10]} c4 {[%emt 0:01:13]} 22. Qc2 {[%emt 0:03:49]} Qb5 {[%emt 0:02:40]} 23. g3 {[%emt 0:04:03]} Qb3 {[%emt 0:00:51]} 24. Rd2 {[%emt 0:02:45]} a5 {[%emt 0:02:40]} 25. Qxb3 {[%emt 0:03:26]} cxb3 {[%emt 0:01:32]} 26. a4 {[%emt 0:00:11]} Rb4 {[%emt 0:23:29]} 27. Rb2 {[%emt 0:01:52]} e5 {[%emt 0:00:06]} 28. Bd2 {[%emt 0:01:54]} Rb7 {[%emt 0:00:09]} 29. Bc3 {[%emt 0:01:38]} exd4 {[%emt 0:00:06]} 30. exd4 {[%emt 0:01:13]} Kf7 {[%emt 0:10:32]} 31. Kf1 {[%emt 0:00:39]} Ke6 {[%emt 0:00:16]} 32. Ke2 {[%emt 0:00:31]} Kd5 {[%emt 0:00:08]} 33. Kd3 {[%emt 0:00:13]} g5 {[%emt 0:05:04]} 34. Bxa5 {[%emt 0:02:15]} Bxd4 {[%emt 0:00:25]} 35. Bc3 {[%emt 0:00:15]} Bc5 {[%emt 0:00:49]} 36. f3 {[%emt 0:04:06]} h5 {[%emt 0:00:59]} 37. Re2 {[%emt 0:02:05]} Ba3 {[%emt 0:01:08]} 38. Re5+ {[%emt 0:01:00]} Kd6 {[%emt 0:00:12]} 39. Re1 {[%emt 0:00:42]} Kd5 {[%emt 0:00:34]} 40. a5 {[%emt 0:00:00]} b2 {[%emt 0:00:00]} 41. Rb1 {[%emt 0:05:16]} Rb3 {[%emt 0:08:42]} 42. Kc2 {[%emt 0:03:08]} Kc4 {[%emt 0:00:30]} 43. Bxb2 {[%emt 0:06:22]} Rxf3 {[%emt 0:00:11]} 44. Bxa3 {[%emt 0:01:57]} Rxa3 {[%emt 0:00:07]} 45. Kd2 {[%emt 0:03:36]} Rxa5 {[%emt 0:01:35]} 46. Rb2 {[%emt 0:03:21]} Re5 {[%emt 0:05:59]} 47. Rb8 {[%emt 0:01:37]} Kd4 {[%emt 0:06:09]} 48. Rd8+ {[%emt 0:02:59]} Ke4 {[%emt 0:00:42]} 49. Ke2 {[%emt 0:00:13]} h4 {[%emt 0:09:12]} 50. gxh4 {[%emt 0:03:26]} g4 {[%emt 0:00:08]} 51. Kf2 {[%emt 0:00:57]} f4 {[%emt 0:00:28]} 52. Rg8 {[%emt 0:01:20]} Rh5 {[%emt 0:01:09]} 53. Re8+ {[%emt 0:01:17]} Re5 {[%emt 0:00:13]} 54. Rg8 {[%emt 0:00:12]} Rc5 {[%emt 0:00:06]} 55. Re8+ {[%emt 0:00:22]} Kf5 {[%emt 0:00:53]} 56. Rf8+ {[%emt 0:00:09]} Ke5 {[%emt 0:00:05]} 57. Re8+ {[%emt 0:00:10]} Kd6 {[%emt 0:00:18]} 58. Rd8+ {[%emt 0:01:33]} Ke6 {[%emt 0:00:50]} 59. Re8+ {[%emt 0:01:04]} Kf7 {[%emt 0:00:24]} 60. Re4 {[%emt 0:00:56]} Rf5 {[%emt 0:00:11]} 61. Kg2 {[%emt 0:01:07]} Kg6 {[%emt 0:01:42]} 62. Re8 {[%emt 0:00:52]} Rh5 {[%emt 0:03:04]} 63. Rf8 {[%emt 0:01:04]} f3+ {[%emt 0:00:37]} 64. Kg3 {[%emt 0:01:36]} Rf5 {[%emt 0:00:15]} 65. h5+ {[%emt 0:00:42]} Kg5 {[%emt 0:01:12]} 66. h4+ {[%emt 0:00:41]} gxh3 {[%emt 0:00:05]} 67. Rxf5+ {[%emt 0:00:08]} Kxf5 {[%emt 0:00:05]} 68. Kxf3 {[%emt 0:00:07]} Kg5 {[%emt 0:00:06]} 69. Kg3 {[%emt 0:00:03]} Kxh5 {[%emt 0:00:03]} 70. Kxh3 {[%emt 0:00:02]} 1/2-1/2